[Event "360 One Wealth GP-3 2024"]
[Site "Mumbai"]
[Date "2024.02.08"]
[Round "4.10"]
[White "Jha Mayan S"]
[Black "Pawar Sohum"]
[Result "0-1"]
[ECO "B04"]
[WhiteElo "1051"]
[BlackElo "1442"]
[Annotator "NA RC"]
[PlyCount "120"]
[EventDate "2024.02.04"]
[EventType "swiss"]
[EventCountry "IND"]
[SourceTitle "playchess.com"]
[Source "ChessBase"]
[SourceQuality "1"]
[TimeControl "5400+30"]

1. e4 {[%emt 0:02:49]} Nf6 {[%emt 0:00:38]} 2. e5 {[%emt 0:01:17]} Nd5 {[%emt 0:00:03]} 3. d4 {[%emt 0:01:28]} d6 {[%emt 0:00:11]} 4. Nf3 {[%emt 0:01:19]} g6 {[%emt 0:05:07]} 5. c4 {[%emt 0:02:40]} Nb6 {[%emt 0:00:04]} 6. h3 {[%emt 0:03:44]} Nc6 {[%emt 0:00:52]} 7. Bf4 {[%emt 0:01:42]} Bg7 {[%emt 0:00:19]} 8. exd6 {[%emt 0:02:41]} cxd6 {[%emt 0:10:13]} 9. Nc3 {[%emt 0:03:39]} O-O {[%emt 0:00:27]} 10. d5 {[%emt 0:04:26]} e5 {[%emt 0:02:47]} 11. Be3 {[%emt 0:05:44]} Ne7 {[%emt 0:00:23]} 12. Be2 {[%emt 0:01:02]} h6 {[%emt 0:02:13]} 13. Qd2 {[%emt 0:02:47]} Kh7 {[%emt 0:00:04]} 14. O-O {[%emt 0:01:05]} f5 {[%emt 0:00:32]} 15. h4 {[%emt 0:08:53]} Nd7 {[%emt 0:01:31]} 16. Qd1 {[%emt 0:08:26]} f4 {[%emt 0:02:05]} 17. Bd2 {[%emt 0:02:00]} Nf5 {[%emt 0:00:09]} 18. h5 {[%emt 0:01:15]} gxh5 {[%emt 0:05:29]} 19. g3 {[%emt 0:05:08]} fxg3 {[%emt 0:01:28]} 20. fxg3 {[%emt 0:00:12]} Nxg3 {[%emt 0:01:27]} 21. Qc2+ {[%emt 0:02:38]} Kh8 {[%emt 0:01:09]} 22. Qg6 {[%emt 0:09:49]} Nxe2+ {[%emt 0:01:34]} 23. Nxe2 {[%emt 0:01:03]} Qf6 {[%emt 0:00:08]} 24. Qxh5 {[%emt 0:01:20]} Qf7 {[%emt 0:01:12]} 25. Qh2 {[%emt 0:02:38]} Qg6+ {[%emt 0:01:28]} 26. Kh1 {[%emt 0:01:01]} Nf6 {[%emt 0:01:23]} 27. Nh4 {[%emt 0:02:41]} Qe4+ {[%emt 0:00:33]} 28. Kg1 {[%emt 0:06:35]} Ng4 {[%emt 0:01:28]} 29. Qg2 {[%emt 0:03:28]} Rxf1+ {[%emt 0:02:27]} 30. Rxf1 {[%emt 0:00:05]} Qxc4 {[%emt 0:00:37]} 31. Rc1 {[%emt 0:03:19]} Qd3 {[%emt 0:01:49]} 32. Rxc8+ {[%emt 0:02:26]} Rxc8 {[%emt 0:00:01]} 33. Qxg4 {[%emt 0:00:14]} Rc4 {[%emt 0:01:02]} 34. Qh5 {[%emt 0:02:30]} Rxh4 {[%emt 0:01:39]} 35. Qxh4 {[%emt 0:00:12]} Qxd2 {[%emt 0:00:39]} 36. Qh3 {[%emt 0:01:08]} Qe1+ {[%emt 0:00:31]} 37. Kh2 {[%emt 0:00:42]} Qxe2+ {[%emt 0:00:06]} 38. Kh1 {[%emt 0:00:16]} Qe4+ {[%emt 0:00:11]} 39. Kg1 {[%emt 0:00:20]} Qb1+ {[%emt 0:00:30]} 40. Kh2 {[%emt 0:00:07]} Qxb2+ {[%emt 0:00:05]} 41. Kg1 {[%emt 0:00:21]} Qa1+ {[%emt 0:00:01]} 42. Kh2 {[%emt 0:00:15]} Qxa2+ {[%emt 0:00:02]} 43. Kg1 {[%emt 0:00:15]} Qxd5 {[%emt 0:00:08]} 44. Qc8+ {[%emt 0:00:24]} Bf8 {[%emt 0:00:27]} 45. Qxf8+ {[%emt 0:00:18]} Qg8+ {[%emt 0:00:02]} 46. Qxg8+ {[%emt 0:00:19]} Kxg8 {[%emt 0:00:02]} 47. Kh2 {[%emt 0:00:05]} a5 {[%emt 0:00:06]} 48. Kh3 {[%emt 0:00:13]} a4 {[%emt 0:00:05]} 49. Kh4 {[%emt 0:00:06]} a3 {[%emt 0:00:04]} 50. Kh5 {[%emt 0:00:10]} Kg7 {[%emt 0:00:14]} 51. Kg4 {[%emt 0:00:03]} Kg6 {[%emt 0:00:15]} 52. Kf3 {[%emt 0:00:04]} a2 {[%emt 0:00:07]} 53. Ke4 {[%emt 0:00:06]} a1=Q {[%emt 0:00:13]} 54. Kd5 {[%emt 0:00:06]} Qd4+ {[%emt 0:00:11]} 55. Ke6 {[%emt 0:00:10]} b5 {[%emt 0:00:15]} 56. Ke7 {[%emt 0:00:08]} b4 {[%emt 0:00:04]} 57. Ke6 {[%emt 0:00:09]} b3 {[%emt 0:00:03]} 58. Ke7 {[%emt 0:00:16]} b2 {[%emt 0:00:03]} 59. Kf8 {[%emt 0:00:15]} b1=Q {[%emt 0:00:07]} 60. Kg8 {[%emt 0:00:05]} Qb8# {[%emt 0:00:22]} 0-1

[Event "360 One Wealth GP-3 2024"]
[Site "Mumbai"]
[Date "2024.02.08"]
[Round "4.12"]
[White "Dodhiya Punit"]
[Black "Lakshya Agrawal"]
[Result "1-0"]
[ECO "B13"]
[WhiteElo "1369"]
[BlackElo "1013"]
[Annotator "NA RC"]
[PlyCount "111"]
[EventDate "2024.02.04"]
[EventType "swiss"]
[EventCountry "IND"]
[SourceTitle "playchess.com"]
[Source "ChessBase"]
[SourceQuality "1"]
[TimeControl "5400+30"]

1. e4 {[%emt 0:05:59]} c6 {[%emt 0:00:29]} 2. d4 {[%emt 0:01:24]} d5 {[%emt 0:01:07]} 3. exd5 {[%emt 0:01:36]} cxd5 {[%emt 0:01:54]} 4. Bd3 {[%emt 0:00:31]} Nc6 {[%emt 0:02:01]} 5. c3 {[%emt 0:02:10]} Nf6 {[%emt 0:01:38]} 6. Bf4 {[%emt 0:02:38]} a6 {[%emt 0:04:26]} 7. Nd2 {[%emt 0:00:41]} Bg4 {[%emt 0:01:26]} 8. Ngf3 {[%emt 0:00:52]} e6 {[%emt 0:02:13]} 9. O-O {[%emt 0:00:26]} Bd6 {[%emt 0:01:08]} 10. Bxd6 {[%emt 0:00:03]} Qxd6 {[%emt 0:00:16]} 11. Qb3 {[%emt 0:01:12]} b5 {[%emt 0:02:01]} 12. Rae1 {[%emt 0:00:37]} O-O {[%emt 0:03:26]} 13. Ne5 {[%emt 0:02:34]} Nd7 {[%emt 0:01:25]} 14. Nxg4 {[%emt 0:01:00]} b4 {[%emt 0:03:11]} 15. f4 {[%emt 0:01:51]} Rab8 {[%emt 0:02:31]} 16. Qc2 {[%emt 0:00:28]} f5 {[%emt 0:00:43]} 17. Ne5 {[%emt 0:00:36]} Ndxe5 {[%emt 0:01:05]} 18. fxe5 {[%emt 0:00:21]} Qe7 {[%emt 0:00:31]} 19. Re3 {[%emt 0:01:43]} Rfc8 {[%emt 0:01:10]} 20. Nb3 {[%emt 0:02:15]} bxc3 {[%emt 0:00:56]} 21. bxc3 {[%emt 0:00:25]} Nb4 {[%emt 0:03:39]} 22. Qb1 {[%emt 0:00:17]} Rxc3 {[%emt 0:00:53]} 23. Rc1 {[%emt 0:15:50]} Nxa2 {[%emt 0:02:12]} 24. Rxc3 {[%emt 0:07:47]} Nxc3 {[%emt 0:00:04]} 25. Qc2 {[%emt 0:00:17]} Qb4 {[%emt 0:01:01]} 26. Bxf5 {[%emt 0:17:02]} Ne2+ {[%emt 0:03:35]} 27. Qxe2 {[%emt 0:06:17]} exf5 {[%emt 0:00:35]} 28. Qxa6 {[%emt 0:02:17]} f4 {[%emt 0:01:12]} 29. Rf3 {[%emt 0:02:38]} Qe1+ {[%emt 0:03:47]} 30. Qf1 {[%emt 0:01:01]} Qe4 {[%emt 0:00:17]} 31. h4 {[%emt 0:04:14]} h6 {[%emt 0:02:32]} 32. h5 {[%emt 0:01:44]} Qc2 {[%emt 0:09:13]} 33. Qc1 {[%emt 0:03:40]} Qe4 {[%emt 0:04:03]} 34. Rxf4 {[%emt 0:03:33]} Qd3 {[%emt 0:01:09]} 35. Rf3 {[%emt 0:01:03]} Qe4 {[%emt 0:00:29]} 36. Qe3 {[%emt 0:03:59]} Qg4 {[%emt 0:02:51]} 37. Rh3 {[%emt 0:03:00]} Rf8 {[%emt 0:02:50]} 38. Nd2 {[%emt 0:02:09]} Qd1+ {[%emt 0:02:09]} 39. Kh2 {[%emt 0:00:20]} Qg4 {[%emt 0:00:22]} 40. e6 {[%emt 0:00:56]} Re8 {[%emt 0:00:57]} 41. e7 {[%emt 0:00:34]} Rxe7 {[%emt 0:01:15]} 42. Qxe7 {[%emt 0:01:06]} Qf4+ {[%emt 0:00:07]} 43. Rg3 {[%emt 0:00:32]} g5 {[%emt 0:00:30]} 44. Qe6+ {[%emt 0:00:28]} Kh7 {[%emt 0:00:12]} 45. Qg6+ {[%emt 0:00:20]} Kh8 {[%emt 0:00:08]} 46. Qxh6+ {[%emt 0:00:11]} Kg8 {[%emt 0:00:09]} 47. Qxg5+ {[%emt 0:00:11]} Qxg5 {[%emt 0:00:07]} 48. Rxg5+ {[%emt 0:00:16]} Kh7 {[%emt 0:00:07]} 49. Rg6 {[%emt 0:00:35]} Kh8 {[%emt 0:00:03]} 50. Kg3 {[%emt 0:00:11]} Kh7 {[%emt 0:00:10]} 51. Kf4 {[%emt 0:00:04]} Kh8 {[%emt 0:00:09]} 52. Kf5 {[%emt 0:00:05]} Kh7 53. Kf6 {[%emt 0:00:22]} Kh8 {[%emt 0:00:04]} 54. Kf7 {[%emt 0:00:08]} Kh7 {[%emt 0:00:03]} 55. g4 {[%emt 0:00:12]} Kh8 {[%emt 0:00:07]} 56. Rh6# {[%emt 0:00:12]} 1-0

[Event "360 One Wealth GP-3 2024"]
[Site "Mumbai"]
[Date "2024.02.09"]
[Round "5.1"]
[White "Bartakke, Amardeep S."]
[Black "Mishra Sanjeev"]
[Result "0-1"]
[ECO "C77"]
[WhiteElo "1961"]
[BlackElo "1683"]
[Annotator "TA"]
[PlyCount "104"]
[EventDate "2024.02.04"]
[EventType "swiss"]
[EventCountry "IND"]
[SourceTitle "playchess.com"]
[Source "ChessBase"]
[SourceQuality "1"]
[TimeControl "5400+30"]

{[%evp 16,104,-5,-22,0,-37,-15,-10,-17,-14,-8,-14,-16,-8,1,0,43,12,50,21,60,67,65,42,32,0,0,0,0,7,14,0,0,0,0,0,0,0,17,16,4,-32,65,59,70,61,83,0,0,0,0,0,0,0,0,0,0,0,8,0,0,0,0,-60,-46,-524,-343,-507,-482,-703,-700,-653,-585,-890,-933,-870,-748,-769,-754,-753,-744,-855,-854,-835,-808,-3080,-2209,-29986,-29987,-29969,-29968]} 1. e4 {[%emt 0:00:04]} e5 {[%emt 0:03:34]} 2. Nf3 {[%emt 0:00:16]} Nc6 {[%emt 0:00:08]} 3. Bb5 {[%emt 0:00:07]} a6 {[%emt 0:00:38]} 4. Ba4 {[%emt 0:00:05]} Nf6 {[%emt 0:00:05]} 5. Qe2 {[%emt 0:00:12]} b5 {[%emt 0:02:58]} 6. Bb3 {[%emt 0:00:05]} Bc5 {[%emt 0:01:42]} 7. c3 {[%emt 0:00:04]} O-O {[%emt 0:00:18]} 8. O-O {[%emt 0:00:11]} d6 {[%emt 0:00:36]} 9. Rd1 {[%emt 0:00:13]} Ba7 {[%emt 0:00:30]} 10. a4 {[%emt 0:07:46]} Bd7 {[%emt 0:07:08]} 11. h3 {[%emt 0:01:37]} h6 {[%emt 0:08:25] The position is equal.} 12. d3 {[%emt 0:07:52]} Re8 {[%emt 0:07:26]} 13. Nbd2 {[%emt 0:01:01]} Na5 {[%emt 0:03:39]} 14. Bc2 {[%emt 0:03:49]} c5 {[%emt 0:01:04][%cal Bc7c5,Bc5c4][%mdl 32]} 15. Nf1 {[%emt 0:04:45]} Be6 16. Be3 {[%emt 0:06:44]} Qc7 {[%emt 0:05:46]} 17. Nh4 {[%emt 0:05:05]} Nb3 {[%emt 0:06:54]} 18. Ra3 {[%emt 0:00:00]} c4 {[%emt 0:03:27][%cal Ob5b4]} 19. Bxb3 cxb3 {[%emt 0:00:02]} 20. axb5 {[%emt 0:00:00] [#] Strongly threatening Rda1.} Bxe3 {[%emt 0:00:16]} 21. Nxe3 {[%emt 0:00:00] Threatens to win with Rda1.} axb5 {[%emt 0:00:02]} 22. Rxa8 {[%emt 0:04:22]} Rxa8 {[%emt 0:00:03]} 23. Nhf5 {[%emt 0:00:12]} Ra2 {[%emt 0:01:20]} 24. Rd2 {[%emt 0:01:59]} Kh7 {[%emt 0:10:55]} 25. Qf3 {[%emt 0:14:33]} Ra1+ {[%emt 0:02:57]} 26. Kh2 {[%emt 0:04:35]} Bxf5 {[%emt 0:08:32]} 27. Qxf5+ {[%emt 0:07:01]} Kg8 {[%emt 0:00:08]} 28. g4 {[%emt 0:01:20]} Ra2 {[%emt 0:02:46]} ({Black should play} 28... b4 $15 29. c4 Nd7) 29. g5 $14 {[%emt 0:02:07]} hxg5 {[%emt 0:00:06]} 30. Qxg5 {[%emt 0:00:13]} Nh7 {[%emt 0:00:23]} 31. Qg1 {[%emt 0:01:23]} (31. Qh4 $16) 31... Qd8 $11 {[%emt 0:01:37]} 32. Nd5 {[%emt 0:05:17]} Qg5 $36 {[%emt 0:04:41][%mdl 2048] Black has good play.} 33. f4 {[%emt 0:03:36]} Qxg1+ {[%emt 0:01:27]} 34. Kxg1 {[%emt 0:00:03]} exf4 {[%emt 0:00:09]} 35. Nxf4 {[%emt 0:00:57][%mdl 4096] Endgame. KRN-KRN} Ng5 {[%emt 0:00:14]} 36. Kf2 {[%emt 0:03:23] Inhibits Nf3.} Ne6 {[%emt 0:01:15]} 37. Ne2 {[%emt 0:08:18]} Nc5 {[%emt 0:00:26][%cal Oa2b2]} 38. Ke3 {[%emt 0:00:11]} Ra1 {[%emt 0:05:13]} 39. d4 {[%emt 0:02:25]} ({White should try} 39. Nd4 $11 Re1+ 40. Re2) 39... Na4 {[%emt 0:00:22]} 40. Ng3 $2 {[%emt 0:01:58][%mdl 8192] This move loses the game for White.} ({Only move:} 40. Nf4 $1 $15) 40... Nb6 {[%emt 0:00:18]} 41. Rg2 {[%emt 0:02:13]} (41. Kf3 {was necessary.}) 41... Nc4+ {[%emt 0:00:01]} 42. Kf4 {[%emt 0:00:33]} (42. Kf3 $142 Rb1 43. Nf5) 42... Rb1 $19 {[%emt 0:00:45]} 43. Nf5 {[%emt 0:02:28]} g6 {[%emt 0:00:31]} 44. Ne7+ {[%emt 0:01:52]} Kf8 {[%emt 0:00:10]} 45. Nc6 {[%emt 0:00:26]} Nxb2 {[%emt 0:00:44]} 46. Nb4 {[%emt 0:00:55]} Nc4 {[%emt 0:00:38]} 47. Nd3 {[%emt 0:00:27]} Rf1+ {[%emt 0:01:29]} 48. Kg5 {[%emt 0:00:38]} Rf3 {[%emt 0:00:34][%csl LRd3,LRh3]} 49. Nb2 {[%emt 0:00:57]} Rxc3 {[%emt 0:00:09] And now ...Rc2 would win.} 50. d5 {[%emt 0:00:35]} Rc2 {[%emt 0:00:12]} 51. Rxc2 {[%emt 0:00:09]} bxc2 {[%emt 0:00:02]} 52. Nd3 {[%emt 0:00:01] [#]} b4 $1 {[%emt 0:00:18] Weighted Error Value: White=0.71/Black=0.18 (very precise) .  Loses game:     	White=1     	---        Mistake:       	White=4     	Black=1      Inaccurate:     	White=4     	Black=4      OK:         	White=9     	Black=12     Best:        	White=1     	Black=2} 0-1

[Event "360 One Wealth GP-3 2024"]
[Site "Mumbai"]
[Date "2024.02.09"]
[Round "5.2"]
[White "Arnav Mahesh Koli"]
[Black "Kapadi Yash"]
[Result "1-0"]
[ECO "B06"]
[WhiteElo "1755"]
[BlackElo "1626"]
[Annotator "NA RC"]
[PlyCount "81"]
[EventDate "2024.02.04"]
[EventType "swiss"]
[EventCountry "IND"]
[SourceTitle "playchess.com"]
[Source "ChessBase"]
[SourceQuality "1"]
[TimeControl "5400+30"]

1. e4 {[%emt 0:00:18]} g6 {[%emt 0:06:43]} 2. d4 Bg7 {[%emt 0:00:14]} 3. c3 d5 {[%emt 0:01:05]} 4. e5 {[%emt 0:00:37]} f6 5. f4 {[%emt 0:04:52]} Nh6 6. Bd3 {[%emt 0:01:33]} O-O 7. Nf3 {[%emt 0:01:29]} Bg4 {[%emt 0:07:11]} 8. O-O c5 {[%emt 0:00:17]} 9. exf6 {[%emt 0:10:33]} Bxf6 {[%emt 0:07:05]} 10. dxc5 {[%emt 0:02:05]} Qc7 {[%emt 0:03:24]} 11. Be3 {[%emt 0:02:18]} Nd7 {[%emt 0:06:06]} 12. Be2 {[%emt 0:09:01]} Bxf3 {[%emt 0:06:42]} 13. Bxf3 {[%emt 0:00:51]} e6 {[%emt 0:00:02]} 14. g4 {[%emt 0:19:12]} Bg7 {[%emt 0:03:37]} 15. Qd2 {[%emt 0:00:20]} g5 {[%emt 0:17:03]} 16. fxg5 {[%emt 0:13:10]} Nf7 {[%emt 0:10:35]} 17. b4 {[%emt 0:06:56]} a5 {[%emt 0:03:35]} 18. Bd4 {[%emt 0:02:17]} Nfe5 {[%emt 0:04:40]} 19. Be2 {[%emt 0:02:24]} Rxf1+ {[%emt 0:01:10]} 20. Kxf1 {[%emt 0:03:48]} axb4 {[%emt 0:00:40]} 21. cxb4 {[%emt 0:02:10]} Rf8+ {[%emt 0:07:19]} 22. Kg2 {[%emt 0:04:25]} Ng6 {[%emt 0:02:33]} 23. Bxg7 {[%emt 0:03:09]} Kxg7 {[%emt 0:01:02]} 24. Nc3 {[%emt 0:01:55]} Nf4+ {[%emt 0:00:09]} 25. Kh1 {[%emt 0:01:56]} Qe5 {[%emt 0:01:06]} 26. Bb5 {[%emt 0:01:26]} d4 {[%emt 0:01:30]} 27. Re1 {[%emt 0:00:44]} Qxg5 {[%emt 0:04:28]} 28. Qxd4+ {[%emt 0:00:22]} Nf6 {[%emt 0:00:12]} 29. Bc4 {[%emt 0:04:17]} Kh6 {[%emt 0:01:39]} 30. Qd6 {[%emt 0:02:21]} Rf7 {[%emt 0:01:19]} 31. Bxe6 {[%emt 0:00:53]} Nxe6 {[%emt 0:00:33]} 32. Qxe6 {[%emt 0:00:11]} Qxg4 {[%emt 0:00:39]} 33. Qxf7 {[%emt 0:01:13]} Qf3+ {[%emt 0:00:19]} 34. Kg1 {[%emt 0:00:03]} Qxc3 {[%emt 0:00:42]} 35. Qe6 {[%emt 0:00:28]} Kg7 {[%emt 0:00:16]} 36. Qe5 {[%emt 0:01:23]} Qxb4 {[%emt 0:00:24]} 37. Rf1 {[%emt 0:00:07]} Qg4+ {[%emt 0:00:02]} 38. Kh1 {[%emt 0:00:10]} Qe4+ {[%emt 0:01:15]} 39. Qxe4 Nxe4 40. Rb1 Nxc5 {[%emt 0:00:02]} 41. Rb5 1-0

[Event "360 One Wealth GP-3 2024"]
[Site "Mumbai"]
[Date "2024.02.09"]
[Round "5.3"]
[White "Raghav, Srivathsav V"]
[Black "Kulkarni, Vikramaditya"]
[Result "0-1"]
[ECO "A43"]
[WhiteElo "2017"]
[BlackElo "2193"]
[Annotator "TA"]
[PlyCount "106"]
[EventDate "2024.02.04"]
[EventType "swiss"]
[EventCountry "IND"]
[SourceTitle "playchess.com"]
[Source "ChessBase"]
[SourceQuality "1"]
[TimeControl "5400+30"]

{[%evp 9,106,31,39,37,23,20,31,42,80,82,74,78,55,27,29,12,14,4,5,29,25,0,6,0,11,0,32,22,25,28,21,12,37,37,72,14,14,0,0,0,0,0,0,0,0,-60,0,-59,-60,-112,-112,-112,-112,-112,-86,-120,-106,-505,-112,-315,-322,-302,-303,-501,-505,-512,-436,-601,-625,-625,-491,-622,-623,-610,-435,-626,-618,-637,-645,-634,-625,-655,-621,-812,-609,-11956,-782,-29976,-29977,-29977,-29978,-29982,-29983,-29983,-29984,-29983,-29983,-29983,-29984]} 1. Nf3 {[%emt 0:17:57]} Nf6 {[%emt 0:01:05]} 2. d4 {[%emt 0:00:42]} c5 {[%emt 0:02:14]} 3. d5 {[%emt 0:00:37]} b5 {[%emt 0:00:46]} 4. a4 {[%emt 0:00:33]} Bb7 {[%emt 0:03:47]} 5. axb5 {[%emt 0:00:25]} Bxd5 {[%emt 0:00:53]} 6. Bg5 {[%emt 0:05:05] Threatens to win with Bxf6.} Bb7 {[%emt 0:02:28]} 7. Nbd2 {[%emt 0:01:39]} d6 {[%emt 0:15:10]} 8. e3 {[%emt 0:05:27] White is slightly better.} g6 {[%emt 0:10:13]} 9. Bxf6 {[%emt 0:04:38]} exf6 {[%emt 0:00:02]} 10. Nb3 {[%emt 0:00:11]} a6 {[%emt 0:15:36]} 11. bxa6 {[%emt 0:11:19]} Nxa6 {[%emt 0:03:41]} 12. Bb5+ {[%emt 0:12:37]} Ke7 {[%emt 0:00:07]} 13. Na5 {[%emt 0:03:05]} Qb6 {[%emt 0:04:10]} 14. Nxb7 {[%emt 0:01:36]} Qxb7 {[%emt 0:01:31]} 15. Be2 {[%emt 0:07:16]} (15. Bc4 {looks sharper.} Nc7 16. Rxa8 Qxa8 17. O-O) 15... Bg7 {[%emt 0:02:04]} 16. O-O $36 {[%emt 0:00:49][%mdl 2048] White fights for an advantage.} Nc7 {[%emt 0:01:21]} 17. Rb1 {[%emt 0:00:45][%cal Ob2b4]} f5 {[%emt 0:03:24][%cal Oa8b8] [#]} 18. b4 $1 {[%emt 0:00:26]} cxb4 {[%emt 0:00:58]} 19. Nd4 {[%emt 0:00:24]} Bxd4 $1 {[%emt 0:10:20]} 20. Bf3 {[%emt 0:01:05]} Qb6 {[%emt 0:01:46] aiming for ...Bc3.} 21. Bxa8 {[%emt 0:01:44]} (21. exd4 Rab8 $11) 21... Bc3 {[%emt 0:00:47]} 22. Bf3 {[%emt 0:00:34]} (22. Bd5 $16) 22... Qb5 {[%emt 0:01:41]} 23. Qd3 {[%emt 0:03:53]} Qxd3 $1 {[%emt 0:00:31]} 24. cxd3 {[%emt 0:00:29]} d5 {[%emt 0:00:39]} 25. Rfc1 {[%emt 0:00:15]} Kd6 {[%emt 0:01:06]} 26. Kf1 {[%emt 0:01:15]} Ra8 {[%emt 0:00:38]} 27. e4 {[%emt 0:01:30]} (27. g3 $11) 27... Ra2 {[%emt 0:03:00]} (27... Ne6 $15) 28. exd5 {[%emt 0:04:15]} (28. Bd1 $11) 28... Nb5 $15 {[%emt 0:02:17]} ({Much weaker is} 28... Nxd5 29. Bd1 $11) 29. Rb3 {[%emt 0:00:38] Black keeps a firm grip on the game.} (29. Bd1 $15) 29... Nd4 $17 {[%emt 0:03:01]} 30. Rbb1 {[%emt 0:01:09]} Nxf3 {[%emt 0:00:00] Black is much more active.} 31. gxf3 {[%emt 0:01:13]} Kxd5 {[%emt 0:00:00][%mdl 4096] Endgame. KRR-KRB} 32. f4 {[%emt 0:00:27]} Rd2 {[%emt 0:01:32][%mdl 1024] Black has strong compensation.} 33. Rd1 $2 {[%emt 0:01:41][%mdl 8192] [#]} (33. Re1 $17) 33... Rc2 $2 {[%emt 0:03:10]} (33... Rxd1+ $1 $19 {is more deadly.} 34. Rxd1 b3) 34. Kg2 $2 {[%emt 0:00:38]} (34. d4 $17) 34... Kd4 $19 {[%emt 0:00:15]} 35. Kf3 {[%emt 0:00:25]} Ra2 {[%emt 0:00:52]} 36. h3 $2 {[%emt 0:03:13]} (36. Rdc1 Kxd3 37. Rd1+ Rd2 38. Re1) 36... Ra3 {[%emt 0:01:31]} 37. Ke2 {[%emt 0:00:31]} b3 {[%emt 0:00:04] White must now prevent ...Ra2+.} 38. Kf3 {[%emt 0:04:10]} b2 {[%emt 0:00:42]} 39. Ke2 {[%emt 0:00:18]} Ra1 40. Rf1 {[%emt 0:00:43]} Ra6 41. Rfd1 {[%emt 0:00:27]} Ra7 42. Kf3 {[%emt 0:01:44]} (42. Rd2 $142 Bxd2 43. Kxd2) 42... Re7 {[%emt 0:01:24]} 43. Kg2 {[%emt 0:00:00]} Re2 {[%emt 0:01:58]} 44. Kg3 {[%emt 0:00:30]} Rc2 {[%emt 0:00:51]} 45. Kf3 {[%emt 0:01:43]} Bd2 46. Ke2 {[%emt 0:00:37]} Bxf4+ 47. Kf1 {[%emt 0:01:36]} Rc1 {[%emt 0:00:13]} (47... Kc3 $142 48. d4 Rc1) 48. Ke2 {[%emt 0:00:00]} Rxb1 {[%emt 0:00:00] Black mates.} 49. Rxb1 {[%emt 0:00:21]} Bc1 {[%emt 0:00:32]} 50. h4 {[%emt 0:00:00]} h5 {[%emt 0:00:00]} 51. f4 {[%emt 0:00:00]} Kc3 {[%emt 0:00:16]} ({Worse is} 51... Bxf4 52. Rxb2 Kd5 53. Kf3 $11) 52. d4 {[%emt 0:00:14]} Kxd4 {[%emt 0:00:00]} 53. Kd1 {[%emt 0:00:17]} Ke4 {[%emt 0:00:17] Weighted Error Value: White=0.66/Black=0.46.  Loses game:     	White=2     	---        Missed win:     	---       	Black=1      Mistake:       	White=5     	Black=1      Inaccurate:     	White=3     	Black=3      OK:         	White=11    	Black=11     Best:        	White=2     	Black=4      Strong:       	---       	Black=2} 0-1